[Event "Titled Tuesday Blitz January 03 Late 2023"]
[White "Volkov, Maksim"]
[Black "Goncalves, Davi Sulzbacher"]
[WhiteFideId "54123070"]
[BlackFideId "2154510"]
[WhiteElo "2258"]
[BlackElo "2282"]
[Result "1/2-1/2"]
[Round "03"]
[TimeControl "180+2"]
[Date "2023.01.03"]
[WhiteClock "0:00:43"]
[BlackClock "0:00:05"]

1. d4 {[%clk 0:03:00]}  Nf6 {[%clk 0:02:59]} 2. c4 {[%clk 0:02:59]}  g6 {[%clk 0:02:59]} 3. Nf3 {[%clk 0:02:58]}  Bg7 {[%clk 0:02:58]} 4. g3 {[%clk 0:02:58]}  O-O {[%clk 0:02:58]} 5. Bg2 {[%clk 0:02:59]}  c6 {[%clk 0:02:58]} 6. O-O {[%clk 0:02:54]}  d5 {[%clk 0:02:58]} 7. cxd5 {[%clk 0:02:52]}  cxd5 {[%clk 0:02:59]} 8. Nc3 {[%clk 0:02:52]}  Ne4 {[%clk 0:02:57]} 9. Ne5 {[%clk 0:02:51]}  Nxc3 {[%clk 0:02:55]} 10. bxc3 {[%clk 0:02:52]}  Nc6 {[%clk 0:02:53]} 11. Bf4 {[%clk 0:02:52]}  Nxe5 {[%clk 0:02:51]} 12. Bxe5 {[%clk 0:02:52]}  Bxe5 {[%clk 0:02:50]} 13. dxe5 {[%clk 0:02:53]}  Be6 {[%clk 0:02:49]} 14. Rb1 {[%clk 0:02:51]}  b6 {[%clk 0:02:46]} 15. c4 {[%clk 0:02:50]}  dxc4 {[%clk 0:02:46]} 16. Bxa8 {[%clk 0:02:48]}  Qxa8 {[%clk 0:02:47]} 17. f3 {[%clk 0:02:45]}  Rd8 {[%clk 0:02:38]} 18. Qc2 {[%clk 0:02:43]}  Qd5 {[%clk 0:02:34]} 19. Qc3 {[%clk 0:02:34]}  Qd2 {[%clk 0:02:16]} 20. Qxd2 {[%clk 0:02:23]}  Rxd2 {[%clk 0:02:17]} 21. Kf2 {[%clk 0:02:23]}  Rxa2 {[%clk 0:01:54]} 22. Ra1 {[%clk 0:02:23]}  Rxa1 {[%clk 0:01:52]} 23. Rxa1 {[%clk 0:02:24]}  b5 {[%clk 0:01:51]} 24. Ke3 {[%clk 0:02:20]}  b4 {[%clk 0:01:48]} 25. Kd2 {[%clk 0:02:15]}  c3+ {[%clk 0:00:28]} 26. Kc2 {[%clk 0:02:15]}  Bc4 {[%clk 0:00:23]} 27. e4 {[%clk 0:02:10]}  Be2 {[%clk 0:00:22]} 28. Rxa7 {[%clk 0:02:06]}  Bxf3 {[%clk 0:00:21]} 29. Kb3 {[%clk 0:02:04]}  Bxe4 {[%clk 0:00:20]} 30. Rxe7 {[%clk 0:02:03]}  c2 {[%clk 0:00:16]} 31. Rc7 {[%clk 0:02:02]}  g5 {[%clk 0:00:14]} 32. Kxb4 {[%clk 0:01:51]}  g4 {[%clk 0:00:09]} 33. Rc3 {[%clk 0:01:48]}  Bf5 {[%clk 0:00:07]} 34. Kc4 {[%clk 0:01:48]}  Kf8 {[%clk 0:00:07]} 35. Kd4 {[%clk 0:01:48]}  Ke7 {[%clk 0:00:07]} 36. Ke3 {[%clk 0:01:49]}  Ke6 {[%clk 0:00:07]} 37. Kf4 {[%clk 0:01:49]}  h5 {[%clk 0:00:04]} 38. Rc5 {[%clk 0:01:42]}  Bg6 {[%clk 0:00:04]} 39. Kg5 {[%clk 0:01:42]}  Ke7 {[%clk 0:00:03]} 40. Rc6 {[%clk 0:01:41]}  Kd7 {[%clk 0:00:03]} 41. Rc3 {[%clk 0:01:41]}  Ke7 {[%clk 0:00:02]} 42. Rc7+ {[%clk 0:01:31]}  Ke6 {[%clk 0:00:02]} 43. Kf4 {[%clk 0:01:30]}  Kd5 {[%clk 0:00:03]} 44. Rc8 {[%clk 0:01:04]}  Kd4 {[%clk 0:00:02]} 45. e6 {[%clk 0:00:58]}  fxe6 {[%clk 0:00:02]} 46. Kg5 {[%clk 0:00:59]}  Bf5 {[%clk 0:00:02]} 47. Kxh5 {[%clk 0:00:58]}  Kd3 {[%clk 0:00:03]} 48. Kg5 {[%clk 0:00:52]}  Kd2 {[%clk 0:00:03]} 49. Rd8+ {[%clk 0:00:52]}  Ke1 {[%clk 0:00:03]} 50. Rc8 {[%clk 0:00:52]}  Kd2 {[%clk 0:00:03]} 51. Rd8+ {[%clk 0:00:52]}  Bd3 {[%clk 0:00:02]} 52. Rc8 {[%clk 0:00:52]}  c1=Q {[%clk 0:00:02]} 53. Rxc1 {[%clk 0:00:53]}  Kxc1 {[%clk 0:00:03]} 54. Kxg4 {[%clk 0:00:53]}  Kd2 {[%clk 0:00:04]} 55. Kf4 {[%clk 0:00:52]}  Kc3 {[%clk 0:00:04]} 56. Ke5 {[%clk 0:00:52]}  Bf5 {[%clk 0:00:04]} 57. h4 {[%clk 0:00:52]}  Kd3 {[%clk 0:00:05]} 58. h5 {[%clk 0:00:51]}  Ke3 {[%clk 0:00:06]} 59. g4 {[%clk 0:00:40]}  Bxg4 {[%clk 0:00:05]} 60. h6 {[%clk 0:00:41]}  Bf5 {[%clk 0:00:05]} 61. h7 {[%clk 0:00:42]}  Bxh7 {[%clk 0:00:05]} 62. Kxe6 {[%clk 0:00:43]} 1/2-1/2


[Site "https://www.chess.com"]

[Event "Titled Tuesday Blitz January 03 Late 2023"]
[White "Quinones Garcia, Santiago"]
[Black "Blanco Ronquillo, Humberto L."]
[WhiteFideId "4408497"]
[BlackFideId "3504239"]
[WhiteElo "2248"]
[BlackElo "2442"]
[Result "0-1"]
[Round "03"]
[TimeControl "180+2"]
[Date "2023.01.03"]
[WhiteClock "0:01:13"]
[BlackClock "0:00:38"]

1. d4 {[%clk 0:02:56]}  Nf6 {[%clk 0:02:59]} 2. c4 {[%clk 0:02:56]}  g6 {[%clk 0:02:59]} 3. Nc3 {[%clk 0:02:57]}  Bg7 {[%clk 0:03:00]} 4. e4 {[%clk 0:02:57]}  d6 {[%clk 0:03:00]} 5. Nf3 {[%clk 0:02:58]}  O-O {[%clk 0:03:01]} 6. h3 {[%clk 0:02:58]}  e5 {[%clk 0:02:59]} 7. d5 {[%clk 0:02:58]}  a5 {[%clk 0:02:58]} 8. Be3 {[%clk 0:02:58]}  Na6 {[%clk 0:02:59]} 9. g4 {[%clk 0:02:58]}  Nd7 {[%clk 0:02:58]} 10. Nd2 {[%clk 0:02:55]}  Nac5 {[%clk 0:02:50]} 11. Qc2 {[%clk 0:02:55]}  a4 {[%clk 0:02:45]} 12. a3 {[%clk 0:02:53]}  b6 {[%clk 0:02:32]} 13. O-O-O {[%clk 0:02:52]}  Qh4 {[%clk 0:02:02]} 14. Be2 {[%clk 0:02:46]}  f5 {[%clk 0:01:52]} 15. gxf5 {[%clk 0:02:45]}  gxf5 {[%clk 0:01:53]} 16. Rdg1 {[%clk 0:02:45]}  f4 {[%clk 0:01:53]} 17. Bxc5 {[%clk 0:02:45]}  Nxc5 {[%clk 0:01:53]} 18. Rg2 {[%clk 0:02:32]}  f3 {[%clk 0:01:21]} 19. Bxf3 {[%clk 0:02:21]}  Kh8 {[%clk 0:01:02]} 20. Kb1 {[%clk 0:02:13]}  Bh6 {[%clk 0:01:02]} 21. Be2 {[%clk 0:01:45]}  Rxf2 {[%clk 0:00:49]} 22. Rxf2 {[%clk 0:01:43]}  Qxf2 {[%clk 0:00:50]} 23. Nf3 {[%clk 0:01:22]}  Bd7 {[%clk 0:00:44]} 24. Nd1 {[%clk 0:01:13]}  Qg3 {[%clk 0:00:38]} 0-1


[Site "https://www.chess.com"]

[Event "Titled Tuesday Blitz January 03 Late 2023"]
[White "Pesotskiy, Mikhail"]
[Black "Sebag, Marie"]
[WhiteFideId "34164453"]
[BlackFideId "617822"]
[WhiteElo "2153"]
[BlackElo "2430"]
[Result "1-0"]
[Round "03"]
[TimeControl "180+2"]
[Date "2023.01.03"]
[WhiteClock "0:00:19"]
[BlackClock "0:00:01"]

1. c4 {[%clk 0:02:57]}  e6 {[%clk 0:02:40]} 2. g3 {[%clk 0:02:53]}  d5 {[%clk 0:02:38]} 3. Bg2 {[%clk 0:02:54]}  Nf6 {[%clk 0:02:37]} 4. Nf3 {[%clk 0:02:54]}  Be7 {[%clk 0:02:36]} 5. O-O {[%clk 0:02:54]}  O-O {[%clk 0:02:36]} 6. b3 {[%clk 0:02:55]}  b6 {[%clk 0:02:34]} 7. Bb2 {[%clk 0:02:55]}  Bb7 {[%clk 0:02:35]} 8. cxd5 {[%clk 0:02:56]}  exd5 {[%clk 0:02:34]} 9. d4 {[%clk 0:02:56]}  Nbd7 {[%clk 0:02:34]} 10. Nbd2 {[%clk 0:02:57]}  Re8 {[%clk 0:02:33]} 11. Ne5 {[%clk 0:02:54]}  Bd6 {[%clk 0:02:32]} 12. Ndf3 {[%clk 0:02:53]}  c5 {[%clk 0:02:31]} 13. Rc1 {[%clk 0:02:51]}  Ne4 {[%clk 0:02:22]} 14. Nxd7 {[%clk 0:02:35]}  Qxd7 {[%clk 0:02:22]} 15. Nd2 {[%clk 0:02:24]}  Ng5 {[%clk 0:02:04]} 16. dxc5 {[%clk 0:02:17]}  Bxc5 {[%clk 0:01:59]} 17. e3 {[%clk 0:01:44]}  d4 {[%clk 0:01:53]} 18. exd4 {[%clk 0:01:42]}  Bxg2 {[%clk 0:01:51]} 19. Kxg2 {[%clk 0:01:43]}  Bxd4 {[%clk 0:01:50]} 20. Bxd4 {[%clk 0:01:42]}  Qxd4 {[%clk 0:01:51]} 21. Nf3 {[%clk 0:01:43]}  Qe4 {[%clk 0:01:44]} 22. Re1 {[%clk 0:01:43]}  Qb7 {[%clk 0:01:42]} 23. Rxe8+ {[%clk 0:01:34]}  Rxe8 {[%clk 0:01:42]} 24. h4 {[%clk 0:01:35]}  Ne4 {[%clk 0:01:34]} 25. Qc2 {[%clk 0:01:31]}  Nc5 {[%clk 0:01:22]} 26. b4 {[%clk 0:01:31]}  Na6 {[%clk 0:01:11]} 27. a3 {[%clk 0:01:24]}  Nb8 {[%clk 0:01:09]} 28. Qc7 {[%clk 0:01:21]}  Qd5 {[%clk 0:01:02]} 29. Re1 {[%clk 0:01:13]}  Rf8 {[%clk 0:00:59]} 30. Re5 {[%clk 0:01:02]}  Qa8 {[%clk 0:00:52]} 31. Rf5 {[%clk 0:00:39]}  Nc6 {[%clk 0:00:44]} 32. Kh2 {[%clk 0:00:39]}  h6 {[%clk 0:00:38]} 33. b5 {[%clk 0:00:22]}  Nd8 {[%clk 0:00:37]} 34. Ne5 {[%clk 0:00:22]}  Ne6 {[%clk 0:00:35]} 35. Qe7 {[%clk 0:00:23]}  Qe4 {[%clk 0:00:09]} 36. Rxf7 {[%clk 0:00:18]}  Rxf7 {[%clk 0:00:01]} 37. Qxf7+ {[%clk 0:00:19]}  Kh8 {[%clk 0:00:01]} 38. Qxe6 {[%clk 0:00:19]} 1-0


[Site "https://www.chess.com"]

[Event "Titled Tuesday Blitz January 03 Late 2023"]
[White "Baskin, Robert"]
[Black "Gasparyan, David"]
[WhiteFideId "24662402"]
[BlackFideId "13311980"]
[WhiteElo "2442"]
[BlackElo "2142"]
[Result "1-0"]
[Round "03"]
[TimeControl "180+2"]
[Date "2023.01.03"]
[WhiteClock "0:00:12"]
[BlackClock "0:00:09"]

1. c4 {[%clk 0:02:59]}  Nf6 {[%clk 0:02:58]} 2. Nc3 {[%clk 0:02:59]}  g6 {[%clk 0:02:53]} 3. g3 {[%clk 0:02:55]}  Bg7 {[%clk 0:02:53]} 4. Bg2 {[%clk 0:02:55]}  O-O {[%clk 0:02:53]} 5. d4 {[%clk 0:02:55]}  d6 {[%clk 0:02:51]} 6. Nf3 {[%clk 0:02:55]}  Nbd7 {[%clk 0:02:51]} 7. O-O {[%clk 0:02:55]}  e5 {[%clk 0:02:44]} 8. e4 {[%clk 0:02:55]}  exd4 {[%clk 0:02:42]} 9. Nxd4 {[%clk 0:02:55]}  Nc5 {[%clk 0:02:36]} 10. h3 {[%clk 0:02:55]}  Re8 {[%clk 0:02:36]} 11. Re1 {[%clk 0:02:38]}  h6 {[%clk 0:02:33]} 12. b3 {[%clk 0:02:24]}  Bd7 {[%clk 0:02:27]} 13. Bb2 {[%clk 0:02:21]}  h5 {[%clk 0:02:21]} 14. Qc2 {[%clk 0:02:16]}  a5 {[%clk 0:02:20]} 15. Ndb5 {[%clk 0:02:14]}  Nh7 {[%clk 0:02:04]} 16. Rad1 {[%clk 0:02:13]}  Ng5 {[%clk 0:01:58]} 17. h4 {[%clk 0:01:54]}  Nge6 {[%clk 0:01:56]} 18. Nd5 {[%clk 0:01:49]}  c6 {[%clk 0:01:45]} 19. Nxd6 {[%clk 0:01:46]}  cxd5 {[%clk 0:01:45]} 20. Nxe8 {[%clk 0:01:45]}  Bxe8 {[%clk 0:01:45]} 21. exd5 {[%clk 0:01:25]}  Nf8 {[%clk 0:01:38]} 22. Bxg7 {[%clk 0:01:22]}  Kxg7 {[%clk 0:01:39]} 23. Qc3+ {[%clk 0:01:12]}  Qf6 {[%clk 0:01:23]} 24. Qe3 {[%clk 0:01:04]}  Rc8 {[%clk 0:01:12]} 25. Rd4 {[%clk 0:01:04]}  Bd7 {[%clk 0:01:09]} 26. Rf4 {[%clk 0:01:02]}  Bf5 {[%clk 0:00:47]} 27. Bh3 {[%clk 0:01:02]}  Nfd7 {[%clk 0:00:42]} 28. Bxf5 {[%clk 0:00:58]}  gxf5 {[%clk 0:00:43]} 29. Kh2 {[%clk 0:00:30]}  Qg6 {[%clk 0:00:34]} 30. Qe7 {[%clk 0:00:28]}  Qf6 {[%clk 0:00:28]} 31. Qe3 {[%clk 0:00:23]}  Qg6 {[%clk 0:00:24]} 32. f3 {[%clk 0:00:23]}  Nf6 {[%clk 0:00:18]} 33. Qd4 {[%clk 0:00:18]}  Nd7 {[%clk 0:00:17]} 34. g4 {[%clk 0:00:14]}  hxg4 {[%clk 0:00:17]} 35. fxg4 {[%clk 0:00:13]}  fxg4 {[%clk 0:00:18]} 36. Rg1 {[%clk 0:00:13]}  Rh8 {[%clk 0:00:17]} 37. Rfxg4 {[%clk 0:00:10]}  Rh6 {[%clk 0:00:14]} 38. Rxg6+ {[%clk 0:00:09]}  fxg6 {[%clk 0:00:15]} 39. Re1 {[%clk 0:00:08]}  g5 {[%clk 0:00:13]} 40. Re7+ {[%clk 0:00:08]}  Kf8 {[%clk 0:00:13]} 41. d6 {[%clk 0:00:07]}  Rxh4+ {[%clk 0:00:13]} 42. Qxh4 {[%clk 0:00:08]}  gxh4 {[%clk 0:00:14]} 43. Kh3 {[%clk 0:00:08]}  b6 {[%clk 0:00:12]} 44. Kxh4 {[%clk 0:00:09]}  Nc5 {[%clk 0:00:11]} 45. Kg5 {[%clk 0:00:09]}  Nce4+ {[%clk 0:00:12]} 46. Kf5 {[%clk 0:00:09]}  Ng8 {[%clk 0:00:08]} 47. Rxe4 {[%clk 0:00:09]}  Kf7 {[%clk 0:00:08]} 48. d7 {[%clk 0:00:09]}  Ne7+ {[%clk 0:00:06]} 49. Kg5 {[%clk 0:00:07]}  Nc6 {[%clk 0:00:07]} 50. Re8 {[%clk 0:00:08]}  Nd4 {[%clk 0:00:06]} 51. d8=Q {[%clk 0:00:08]}  Ne6+ {[%clk 0:00:07]} 52. Rxe6 {[%clk 0:00:08]}  Kxe6 {[%clk 0:00:07]} 53. Qxb6+ {[%clk 0:00:08]}  Ke7 {[%clk 0:00:08]} 54. Qxa5 {[%clk 0:00:09]}  Kd6 {[%clk 0:00:08]} 55. Qd5+ {[%clk 0:00:09]}  Kc7 {[%clk 0:00:09]} 56. c5 {[%clk 0:00:10]}  Kc8 {[%clk 0:00:09]} 57. Qc6+ {[%clk 0:00:10]}  Kd8 {[%clk 0:00:09]} 58. Qb7 {[%clk 0:00:10]}  Ke8 {[%clk 0:00:09]} 59. c6 {[%clk 0:00:11]}  Kf8 {[%clk 0:00:09]} 60. Qd7 {[%clk 0:00:12]} 1-0


[Site "https://www.chess.com"]

[Event "Titled Tuesday Blitz January 03 Late 2023"]
[White "Ansh M Shah"]
[Black "Fishbein, Alexander"]
[WhiteFideId "25033379"]
[BlackFideId "2000377"]
[WhiteElo "2171"]
[BlackElo "2366"]
[Result "1/2-1/2"]
[Round "03"]
[TimeControl "180+2"]
[Date "2023.01.03"]
[WhiteClock "0:00:07"]
[BlackClock "0:00:06"]

1. d4 {[%clk 0:02:56]}  Nf6 {[%clk 0:02:59]} 2. c4 {[%clk 0:02:55]}  g6 {[%clk 0:02:56]} 3. h4 {[%clk 0:02:55]}  c5 {[%clk 0:02:53]} 4. d5 {[%clk 0:02:55]}  b5 {[%clk 0:02:53]} 5. cxb5 {[%clk 0:02:56]}  a6 {[%clk 0:02:53]} 6. e3 {[%clk 0:02:52]}  Bg7 {[%clk 0:02:50]} 7. Nc3 {[%clk 0:02:41]}  O-O {[%clk 0:02:48]} 8. a4 {[%clk 0:02:25]}  axb5 {[%clk 0:02:46]} 9. Bxb5 {[%clk 0:02:23]}  Ba6 {[%clk 0:02:45]} 10. Bd2 {[%clk 0:02:23]}  d6 {[%clk 0:02:43]} 11. Nf3 {[%clk 0:02:22]}  Nbd7 {[%clk 0:02:33]} 12. e4 {[%clk 0:02:07]}  Bxb5 {[%clk 0:02:16]} 13. axb5 {[%clk 0:02:04]}  Rxa1 {[%clk 0:02:16]} 14. Qxa1 {[%clk 0:02:05]}  e6 {[%clk 0:02:12]} 15. dxe6 {[%clk 0:02:02]}  fxe6 {[%clk 0:02:11]} 16. O-O {[%clk 0:02:01]}  d5 {[%clk 0:02:02]} 17. Ng5 {[%clk 0:01:50]}  Qb6 {[%clk 0:01:51]} 18. Qa6 {[%clk 0:01:39]}  d4 {[%clk 0:01:39]} 19. Na4 {[%clk 0:01:24]}  Qxa6 {[%clk 0:01:39]} 20. bxa6 {[%clk 0:01:25]}  Ra8 {[%clk 0:01:36]} 21. Nxe6 {[%clk 0:01:24]}  Nxe4 {[%clk 0:01:31]} 22. Nc7 {[%clk 0:00:50]}  Ra7 {[%clk 0:01:30]} 23. Bf4 {[%clk 0:00:50]}  Ne5 {[%clk 0:01:20]} 24. Ne6 {[%clk 0:00:46]}  Nd3 {[%clk 0:01:14]} 25. f3 {[%clk 0:00:29]}  Rxa6 {[%clk 0:01:06]} 26. Nxg7 {[%clk 0:00:28]}  Nxf4 {[%clk 0:00:59]} 27. fxe4 {[%clk 0:00:27]}  Rxa4 {[%clk 0:00:49]} 28. Ne8 {[%clk 0:00:25]}  Ne6 {[%clk 0:00:43]} 29. Rf6 {[%clk 0:00:20]}  Ra6 {[%clk 0:00:35]} 30. e5 {[%clk 0:00:16]}  c4 {[%clk 0:00:29]} 31. Nd6 {[%clk 0:00:15]}  Nc5 {[%clk 0:00:23]} 32. Rf4 {[%clk 0:00:13]}  d3 {[%clk 0:00:18]} 33. Nxc4 {[%clk 0:00:09]}  Ra1+ {[%clk 0:00:17]} 34. Kf2 {[%clk 0:00:08]}  Rc1 {[%clk 0:00:16]} 35. Rd4 {[%clk 0:00:07]}  Rc2+ {[%clk 0:00:14]} 36. Ke3 {[%clk 0:00:07]}  Rxg2 {[%clk 0:00:14]} 37. Rd5 {[%clk 0:00:07]}  Ne6 {[%clk 0:00:08]} 38. Rxd3 {[%clk 0:00:06]}  Rg3+ {[%clk 0:00:09]} 39. Kd2 {[%clk 0:00:06]}  Rg4 {[%clk 0:00:09]} 40. Nd6 {[%clk 0:00:05]}  Rxh4 {[%clk 0:00:08]} 41. Ne8 {[%clk 0:00:05]}  Kf7 {[%clk 0:00:08]} 42. Nf6 {[%clk 0:00:06]}  Kg7 {[%clk 0:00:08]} 43. Rd7+ {[%clk 0:00:06]}  Kh6 {[%clk 0:00:07]} 44. Rxh7+ {[%clk 0:00:06]}  Kg5 {[%clk 0:00:07]} 45. Rxh4 {[%clk 0:00:06]}  Kxh4 {[%clk 0:00:08]} 46. Ke3 {[%clk 0:00:07]}  Kg5 {[%clk 0:00:08]} 47. Ke4 {[%clk 0:00:06]}  Nc5+ {[%clk 0:00:08]} 48. Kd5 {[%clk 0:00:06]}  Nd3 {[%clk 0:00:08]} 49. b3 {[%clk 0:00:07]}  Kf5 {[%clk 0:00:06]} 50. Ne4 {[%clk 0:00:04]}  Nxe5 {[%clk 0:00:06]} 51. Nd6+ {[%clk 0:00:04]}  Kf4 {[%clk 0:00:06]} 52. Nc4 {[%clk 0:00:03]}  Nd7 {[%clk 0:00:06]} 53. Nd2 {[%clk 0:00:02]}  g5 {[%clk 0:00:06]} 54. Nf1 {[%clk 0:00:02]}  g4 {[%clk 0:00:06]} 55. Kc6 {[%clk 0:00:02]}  Ne5+ {[%clk 0:00:06]} 56. Kd5 {[%clk 0:00:03]}  Nf3 {[%clk 0:00:06]} 57. b4 {[%clk 0:00:03]}  Nd2 {[%clk 0:00:05]} 58. b5 {[%clk 0:00:04]}  Nxf1 {[%clk 0:00:05]} 59. b6 {[%clk 0:00:04]}  g3 {[%clk 0:00:05]} 60. b7 {[%clk 0:00:04]}  Ne3+ {[%clk 0:00:06]} 61. Kc5 {[%clk 0:00:04]}  Kf3 {[%clk 0:00:06]} 62. b8=Q {[%clk 0:00:05]}  g2 {[%clk 0:00:06]} 63. Qf8+ {[%clk 0:00:05]}  Ke2 {[%clk 0:00:07]} 64. Qg7 {[%clk 0:00:05]}  Kf1 {[%clk 0:00:07]} 65. Qf6+ {[%clk 0:00:05]}  Ke2 {[%clk 0:00:07]} 66. Qg5 {[%clk 0:00:06]}  Kf2 {[%clk 0:00:07]} 67. Qf4+ {[%clk 0:00:06]}  Ke2 {[%clk 0:00:07]} 68. Qg3 {[%clk 0:00:07]}  Kf1 {[%clk 0:00:06]} 69. Qxe3 {[%clk 0:00:07]}  g1=Q {[%clk 0:00:06]} 70. Qxg1+ {[%clk 0:00:07]}  Kxg1 {[%clk 0:00:06]} 1/2-1/2


[Site "https://www.chess.com"]

[Event "Titled Tuesday Blitz January 03 Late 2023"]
[White "Msellek, Ilyass"]
[Black "Strahov, Andrej"]
[WhiteFideId "675938"]
[BlackFideId "4165489"]
[WhiteElo "2420"]
[BlackElo "2398"]
[Result "0-1"]
[Round "03"]
[TimeControl "180+2"]
[Date "2023.01.03"]
[WhiteClock "0:00:16"]
[BlackClock "0:00:29"]

1. d4 {[%clk 0:03:00]}  Nf6 {[%clk 0:02:58]} 2. Bf4 {[%clk 0:03:00]}  d5 {[%clk 0:02:57]} 3. e3 {[%clk 0:03:00]}  c5 {[%clk 0:02:57]} 4. c3 {[%clk 0:02:59]}  Qb6 {[%clk 0:02:57]} 5. Qb3 {[%clk 0:02:46]}  c4 {[%clk 0:02:56]} 6. Qxb6 {[%clk 0:02:45]}  axb6 {[%clk 0:02:57]} 7. a3 {[%clk 0:02:44]}  b5 {[%clk 0:02:56]} 8. Nd2 {[%clk 0:02:44]}  Nc6 {[%clk 0:02:40]} 9. Rc1 {[%clk 0:02:43]}  Bf5 {[%clk 0:02:39]} 10. h3 {[%clk 0:02:41]}  e6 {[%clk 0:02:36]} 11. g4 {[%clk 0:02:41]}  Bg6 {[%clk 0:02:36]} 12. Ngf3 {[%clk 0:02:30]}  h6 {[%clk 0:02:32]} 13. Bg2 {[%clk 0:02:20]}  Nd7 {[%clk 0:02:28]} 14. Nh4 {[%clk 0:02:08]}  Bh7 {[%clk 0:02:28]} 15. Bc7 {[%clk 0:02:02]}  Rc8 {[%clk 0:02:27]} 16. Bg3 {[%clk 0:02:00]}  Nb6 {[%clk 0:02:15]} 17. e4 {[%clk 0:01:58]}  g5 {[%clk 0:02:00]} 18. Nhf3 {[%clk 0:01:48]}  dxe4 {[%clk 0:01:52]} 19. Ne5 {[%clk 0:01:48]}  Nxe5 {[%clk 0:01:32]} 20. Bxe5 {[%clk 0:01:49]}  Rg8 {[%clk 0:01:28]} 21. Bxe4 {[%clk 0:01:41]}  Bxe4 {[%clk 0:01:27]} 22. Nxe4 {[%clk 0:01:42]}  Nd5 {[%clk 0:01:27]} 23. Bd6 {[%clk 0:01:30]}  Kd7 {[%clk 0:01:21]} 24. Bxf8 {[%clk 0:01:29]}  Rgxf8 {[%clk 0:01:21]} 25. h4 {[%clk 0:01:27]}  f5 {[%clk 0:01:20]} 26. Nc5+ {[%clk 0:01:27]}  Kc6 {[%clk 0:01:20]} 27. hxg5 {[%clk 0:01:24]}  hxg5 {[%clk 0:01:20]} 28. Rh6 {[%clk 0:01:24]}  Rce8 {[%clk 0:01:16]} 29. Kd2 {[%clk 0:01:17]}  fxg4 {[%clk 0:01:14]} 30. Re1 {[%clk 0:01:04]}  Rxf2+ {[%clk 0:01:10]} 31. Kc1 {[%clk 0:01:03]}  Nf4 {[%clk 0:01:06]} 32. Re5 {[%clk 0:00:48]}  g3 {[%clk 0:00:43]} 33. Ne4 {[%clk 0:00:23]}  g2 {[%clk 0:00:37]} 34. Rc5+ {[%clk 0:00:22]}  Kb6 {[%clk 0:00:33]} 35. Nxf2 {[%clk 0:00:15]}  g1=Q+ {[%clk 0:00:33]} 36. Nd1 {[%clk 0:00:16]}  Nd3+ {[%clk 0:00:33]} 37. Kd2 {[%clk 0:00:16]}  Nxc5 {[%clk 0:00:32]} 38. dxc5+ {[%clk 0:00:17]}  Qxc5 {[%clk 0:00:30]} 39. Nf2 {[%clk 0:00:16]}  Qxf2+ {[%clk 0:00:29]} 0-1


[Site "https://www.chess.com"]

[Event "Titled Tuesday Blitz January 03 Late 2023"]
[White "Keller, Peter"]
[Black "Krsnik Cohar, Ivan Vihor"]
[WhiteFideId "1272105"]
[BlackFideId "14520044"]
[WhiteElo "2358"]
[BlackElo "2336"]
[Result "1-0"]
[Round "03"]
[TimeControl "180+2"]
[Date "2023.01.03"]
[WhiteClock "0:00:18"]
[BlackClock "0:00:02"]

1. d4 {[%clk 0:03:00]}  Nf6 {[%clk 0:02:59]} 2. Bf4 {[%clk 0:02:59]}  d6 {[%clk 0:02:57]} 3. e3 {[%clk 0:02:59]}  Nbd7 {[%clk 0:02:58]} 4. Nf3 {[%clk 0:02:59]}  g6 {[%clk 0:02:58]} 5. h3 {[%clk 0:02:59]}  Bg7 {[%clk 0:02:58]} 6. Be2 {[%clk 0:02:59]}  O-O {[%clk 0:02:58]} 7. O-O {[%clk 0:02:59]}  Re8 {[%clk 0:02:58]} 8. c3 {[%clk 0:02:59]}  e5 {[%clk 0:02:58]} 9. dxe5 {[%clk 0:02:58]}  dxe5 {[%clk 0:02:58]} 10. Bh2 {[%clk 0:02:58]}  Qe7 {[%clk 0:02:34]} 11. a4 {[%clk 0:02:58]}  a5 {[%clk 0:02:27]} 12. Na3 {[%clk 0:02:57]}  Ne4 {[%clk 0:02:07]} 13. Nb5 {[%clk 0:02:48]}  Ndc5 {[%clk 0:01:59]} 14. b4 {[%clk 0:01:49]}  Nxc3 {[%clk 0:01:54]} 15. Nxc3 {[%clk 0:01:49]}  axb4 {[%clk 0:01:52]} 16. Nd5 {[%clk 0:01:40]}  Qd7 {[%clk 0:01:32]} 17. Bb5 {[%clk 0:01:31]}  c6 {[%clk 0:01:29]} 18. Nb6 {[%clk 0:01:31]}  Qxd1 {[%clk 0:01:23]} 19. Rfxd1 {[%clk 0:01:32]}  cxb5 {[%clk 0:00:47]} 20. Nxa8 {[%clk 0:01:30]}  bxa4 {[%clk 0:00:34]} 21. Nc7 {[%clk 0:01:25]}  Rf8 {[%clk 0:00:27]} 22. Bxe5 {[%clk 0:01:16]}  b3 {[%clk 0:00:25]} 23. Bxg7 {[%clk 0:01:09]}  Kxg7 {[%clk 0:00:26]} 24. Rd2 {[%clk 0:00:45]}  Bd7 {[%clk 0:00:14]} 25. Nd4 {[%clk 0:00:40]}  Rc8 {[%clk 0:00:08]} 26. Nd5 {[%clk 0:00:39]}  Ra8 {[%clk 0:00:06]} 27. Nb6 {[%clk 0:00:38]}  Ra6 {[%clk 0:00:04]} 28. Nxd7 {[%clk 0:00:36]}  Nxd7 {[%clk 0:00:05]} 29. Nxb3 {[%clk 0:00:30]}  axb3 {[%clk 0:00:02]} 30. Rxa6 {[%clk 0:00:30]}  bxa6 {[%clk 0:00:01]} 31. Rxd7 {[%clk 0:00:31]}  a5 {[%clk 0:00:02]} 32. Rb7 {[%clk 0:00:20]}  a4 {[%clk 0:00:02]} 33. Rb4 {[%clk 0:00:18]} 1-0


[Site "https://www.chess.com"]

[Event "Titled Tuesday Blitz January 03 Late 2023"]
[White "Ilkhomi, Jaloliddin"]
[Black "Novikov, Evgenij"]
[WhiteFideId "14700948"]
[BlackFideId "4125380"]
[WhiteElo "1997"]
[BlackElo "2276"]
[Result "1/2-1/2"]
[Round "03"]
[TimeControl "180+2"]
[Date "2023.01.03"]
[WhiteClock "0:01:48"]
[BlackClock "0:00:37"]

1. d4 {[%clk 0:03:00]}  d5 {[%clk 0:02:57]} 2. Bf4 {[%clk 0:03:00]}  c5 {[%clk 0:02:57]} 3. e3 {[%clk 0:02:59]}  cxd4 {[%clk 0:02:56]} 4. exd4 {[%clk 0:03:00]}  Nc6 {[%clk 0:02:56]} 5. c3 {[%clk 0:03:00]}  Nf6 {[%clk 0:02:57]} 6. Nd2 {[%clk 0:03:00]}  Bf5 {[%clk 0:02:56]} 7. Qb3 {[%clk 0:03:00]}  Qc8 {[%clk 0:02:53]} 8. Ngf3 {[%clk 0:03:00]}  e6 {[%clk 0:02:49]} 9. Ne5 {[%clk 0:02:59]}  Be7 {[%clk 0:02:42]} 10. Bd3 {[%clk 0:02:57]}  Bxd3 {[%clk 0:02:40]} 11. Nxd3 {[%clk 0:02:58]}  O-O {[%clk 0:02:40]} 12. O-O {[%clk 0:02:58]}  Na5 {[%clk 0:02:22]} 13. Qa4 {[%clk 0:02:53]}  Nc4 {[%clk 0:02:11]} 14. Nxc4 {[%clk 0:02:49]}  Qxc4 {[%clk 0:02:06]} 15. Qxc4 {[%clk 0:02:49]}  dxc4 {[%clk 0:02:07]} 16. Ne5 {[%clk 0:02:50]}  Rac8 {[%clk 0:02:01]} 17. Bg5 {[%clk 0:02:47]}  Nd5 {[%clk 0:02:00]} 18. Bxe7 {[%clk 0:02:46]}  Nxe7 {[%clk 0:02:01]} 19. f4 {[%clk 0:02:46]}  g6 {[%clk 0:01:53]} 20. g4 {[%clk 0:02:43]}  f6 {[%clk 0:01:41]} 21. Nd7 {[%clk 0:02:41]}  Rf7 {[%clk 0:01:39]} 22. Nc5 {[%clk 0:02:42]}  Rc6 {[%clk 0:01:31]} 23. Rae1 {[%clk 0:02:34]}  Rb6 {[%clk 0:01:16]} 24. Re2 {[%clk 0:02:32]}  e5 {[%clk 0:01:09]} 25. Nd7 {[%clk 0:02:20]}  Re6 {[%clk 0:00:59]} 26. fxe5 {[%clk 0:02:10]}  Nd5 {[%clk 0:00:54]} 27. Nc5 {[%clk 0:02:02]}  Rb6 {[%clk 0:00:50]} 28. exf6 {[%clk 0:01:56]}  Nxf6 {[%clk 0:00:39]} 29. g5 {[%clk 0:01:48]}  Nd5 {[%clk 0:00:39]} 30. Re8+ {[%clk 0:01:47]}  Kg7 {[%clk 0:00:37]} 31. Ne6+ {[%clk 0:01:48]}  Rxe6 {[%clk 0:00:37]} 32. Re7 {[%clk 0:01:48]} 1/2-1/2


[Site "https://www.chess.com"]